fUSD/lending_fUSD_20251211
["ID","MTS","AMOUNT","RATE_DAILY","PERIOD"]
[398242258,1765450242776,-150.0,0.00017247,2]
[398242259,1765450242785,-200.0,0.00017247,2]
[398242260,1765450242796,-150.0,0.00017247,2]
[398242261,1765450242805,-150.0,0.00017247,2]
[398242262,1765450242814,-500.0,0.00017247,2]
[398242263,1765450242832,-500.0,0.00017247,2]
[398242264,1765450242842,-619.8326285,0.00017247,2]
[398242265,1765450242852,-500.0,0.00017247,2]
[398242266,1765450242862,-500.0,0.00017247,2]
[398242267,1765450242871,-150.0,0.00017247,2]
[398242268,1765450242887,-500.0,0.00017247,2]
[398242269,1765450242906,-500.0,0.00017247,2]
[398242270,1765450242922,-500.0,0.00017247,2]
[398242271,1765450242931,-500.0,0.00017247,2]
[398242272,1765450242940,-150.0,0.00017247,2]
[398242273,1765450242949,-200.0,0.00017247,2]
[398242274,1765450242958,-500.0,0.00017247,2]
[398242275,1765450242967,-506.48269393,0.00017247,2]
[398242276,1765450242976,-168.0,0.00017249,2]
[398242277,1765450242985,-1811.0,0.00017281,2]
[398242278,1765450242994,-935.0,0.00017317,2]
[398242279,1765450243003,-168.0,0.00017322,2]
[398242280,1765450243012,-151.0,0.00017333,2]
[398242282,1765450243021,-12896.10933464,0.00017333,2]
[398242284,1765450243035,-17252.42993007,0.00017333,2]
[398242286,1765450243045,-317.0,0.00017346,2]
[398242288,1765450243055,-250.08427247,0.00017384,2]
[398242290,1765450243064,-278.13950023,0.00017384,2]
[398242292,1765450243074,-150.0,0.00017384,2]
[398242295,1765450243084,-150.0,0.00017384,2]
[398242296,1765450243093,-157.96168769,0.00017384,2]
[398242297,1765450243103,-500.0,0.00017384,2]
[398242299,1765450243112,-498.79894265,0.00017384,2]
[398242301,1765450243121,-500.0,0.00017384,2]
[398242303,1765450243131,-150.0,0.00017384,2]
[398242305,1765450243140,-500.0,0.00017384,2]
[398242307,1765450243150,-500.0,0.00017384,2]
[398242309,1765450243159,-500.0,0.00017384,2]
[398242311,1765450243168,-150.0,0.00017384,2]
[398242313,1765450243178,-500.0,0.00017384,2]
[398242315,1765450243187,-927.97,0.00017395,2]
[398242317,1765450243197,-168.0,0.00017428,2]
[398242319,1765450243207,-168.0,0.00017445,2]
[398242321,1765450243216,-168.0,0.00017458,2]
[398242323,1765450243226,-317.0,0.000175,2]
[398242325,1765450243235,-317.0,0.00017505,2]
[398242327,1765450243244,-250.0,0.00017517,2]
[398242329,1765450243254,-150.97933774,0.00017517,2]
[398242331,1765450243263,-358.33485164,0.00017517,2]
[398242333,1765450243273,-195.0,0.00017517,2]
[398242335,1765450243282,-300.0,0.00017519,2]
[398242337,1765450243292,-195.0,0.00017519,2]
[398242339,1765450243302,-2500.0,0.00017519,2]
[398242341,1765450243311,-2500.0,0.00017519,2]
[398242343,1765450243320,-2500.0,0.00017519,2]
[398242345,1765450243329,-2500.0,0.00017519,2]
[398242347,1765450243338,-2500.0,0.00017519,2]
[398242349,1765450243348,-300.0,0.00017519,2]
[398242351,1765450243357,-250.0,0.00017519,2]
[398242353,1765450243366,-150.13031673,0.00017521,2]
[398242355,1765450243375,-205.07312879,0.00017521,2]
[398242357,1765450243384,-500.0,0.00017521,2]
[398242360,1765450243398,-500.0,0.00017521,2]
[398242362,1765450243407,-500.0,0.00017521,2]
[398242364,1765450243416,-500.0,0.00017521,2]
[398242366,1765450243425,-500.0,0.00017521,2]
[398242368,1765450243434,-150.0,0.00017521,2]
[398242370,1765450243443,-500.0,0.00017521,2]
[398242371,1765450243453,-12896.10933464,0.00017522,2]
[398242372,1765450243463,-17252.42993007,0.00017522,2]
[398242373,1765450243472,-250.0,0.00017524,2]
[398242374,1765450243482,-311.1,0.00017554,2]
[398242375,1765450243492,-193.0,0.00017556,2]
[398242376,1765450243501,-195.0,0.00017556,2]
[398242377,1765450243512,-300.0,0.00017556,2]
[398242378,1765450243523,-300.0,0.00017556,2]
[398242379,1765450243532,-250.0,0.00017556,2]
[398242380,1765450243542,-5000.0,0.00017556,3]
[398242381,1765450243551,-195.0,0.00017557,2]
[398242382,1765450243561,-300.0,0.00017557,2]
[398242383,1765450243571,-500.0,0.00017562,2]
[398242384,1765450243580,-1436.0,0.0001764,2]
[398242385,1765450243593,-420.0,0.00017643,2]
[398242386,1765450243603,-420.0,0.00017643,2]
[398242387,1765450243616,-500.0,0.00017658,2]
[398242388,1765450243626,-448.65381266,0.00017658,2]
[398242389,1765450243635,-500.0,0.00017658,2]
[398242390,1765450243644,-500.0,0.00017658,2]
[398242391,1765450243655,-250.0,0.00017658,2]
[398242392,1765450243665,-500.0,0.00017658,2]
[398242393,1765450243674,-927.97,0.00017669,2]
[398242394,1765450243684,-12896.10933464,0.00017711,2]
[398242395,1765450243695,-17252.42993007,0.00017711,2]
[398242396,1765450243704,-1680.0,0.00017728,2]
[398242397,1765450243716,-151.0,0.00017746,2]
[398242398,1765450243726,-317.0,0.0001775,2]
[398242399,1765450243735,-317.0,0.00017774,2]
[398242400,1765450243744,-500.0,0.00017781,2]
[398242401,1765450243753,-500.0,0.00017795,2]
[398242402,1765450243762,-500.0,0.00017795,2]
[398242403,1765450243771,-500.0,0.00017795,2]
[398242404,1765450243780,-500.0,0.00017795,2]
[398242405,1765450243790,-1811.0,0.00017829,2]
[398242406,1765450243801,-1000.0,0.00017849,2]
[398242407,1765450243811,-168.0,0.00017879,2]
[398242408,1765450243820,-894.9,0.00017899,2]
[398242409,1765450243830,-12896.10933464,0.000179,2]
[398242410,1765450243839,-17252.42993007,0.000179,2]
[398242411,1765450243848,-317.0,0.00017915,2]
[398242412,1765450243857,-150.56,0.00017922,2]
[398242413,1765450243867,-500.0,0.00017932,2]
[398242414,1765450243876,-500.0,0.00017932,2]
[398242415,1765450243885,-500.0,0.00017932,2]
[398242416,1765450243894,-500.0,0.00017932,2]
[398242417,1765450243903,-927.97,0.00017943,2]
[398242418,1765450243912,-317.0,0.00017946,2]
[398242419,1765450243921,-897.81145954,0.0001799,2]
[398242420,1765450243930,-300.0,0.00017999,2]
[398242421,1765450243940,-151.0,0.00017999,2]
[398242422,1765450243949,-894.9,0.00017999,2]
[398242423,1765450243958,-894.9,0.00017999,2]
[398242424,1765450243967,-894.9,0.00017999,2]
[398242425,1765450243976,-894.9,0.00017999,2]
[398242426,1765450243985,-894.9,0.00017999,2]
[398242427,1765450243997,-894.9,0.00017999,2]
[398242428,1765450244006,-894.9,0.00017999,2]
[398242429,1765450244015,-894.93444585,0.00017999,2]
[398242430,1765450244025,-1532197.69082568,0.00018,2]
[398242431,1765450244035,-164.582771,0.00018,2]
[398242432,1765450244044,-346.77,0.00018054,2]
[398242433,1765450244054,-228.77689455,0.00018069,2]
[398242434,1765450244063,-500.0,0.00018069,2]
[398242435,1765450244073,-500.0,0.00018069,2]
[398242436,1765450244082,-500.0,0.00018069,2]
[398242437,1765450244092,-162.72,0.00018082,2]
[398242438,1765450244101,-168.0,0.00018087,2]
[398242439,1765450244111,-500.0,0.00018206,2]
[398242440,1765450244120,-411.64172486,0.00018206,2]
[398242441,1765450244129,-316.01974198,0.00018206,2]
[398242442,1765450244138,-928.04,0.00018217,2]
[398242443,1765450244147,-97944.4704043,0.00018263,2]
[398242444,1765450244156,-317.0,0.00018294,2]
[398242445,1765450244166,-317.0,0.00018306,2]
[398242446,1765450244175,-200.0,0.00018319,2]
[398242447,1765450244187,-594.0,0.00018329,2]
[398242448,1765450244196,-151.0,0.00018329,2]
[398242449,1765450244205,-153.0,0.00018329,2]
[398242450,1765450244214,-153.0,0.00018329,2]
[398242451,1765450244224,-153.0,0.00018329,2]
[398242452,1765450244233,-153.0,0.00018329,2]
[398242453,1765450244244,-153.0,0.00018329,2]
[398242454,1765450244253,-1253.0,0.0001833,2]
[398242455,1765450244263,-152.0,0.0001833,2]
[398242456,1765450244272,-1253.0,0.0001833,2]
[398242457,1765450244282,-152.0,0.0001833,2]
[398242458,1765450244292,-151.0,0.0001833,2]
[398242459,1765450244302,-1253.0,0.0001833,2]
[398242460,1765450244312,-152.0,0.0001833,2]
[398242461,1765450244323,-151.0,0.0001833,2]
[398242462,1765450244333,-834.0,0.0001833,2]
[398242463,1765450244343,-1253.0,0.0001833,2]
[398242464,1765450244352,-152.0,0.0001833,2]
[398242465,1765450244362,-151.0,0.0001833,2]
[398242466,1765450244371,-834.0,0.0001833,2]
[398242467,1765450244381,-1253.0,0.0001833,2]
[398242468,1765450244390,-152.0,0.0001833,2]
[398242469,1765450244399,-151.0,0.0001833,2]
[398242470,1765450244409,-834.0,0.0001833,2]
[398242471,1765450244419,-1253.0,0.0001833,2]
[398242472,1765450244428,-152.0,0.0001833,2]
[398242473,1765450244437,-151.0,0.0001833,2]
[398242474,1765450244447,-834.0,0.0001833,2]
[398242475,1765450244457,-1253.0,0.0001833,2]
[398242476,1765450244466,-152.0,0.0001833,2]
[398242477,1765450244475,-834.0,0.0001833,2]
[398242478,1765450244485,-1253.0,0.0001833,2]
[398242479,1765450244494,-152.0,0.0001833,2]
[398242480,1765450244503,-834.0,0.0001833,2]
[398242481,1765450244512,-1253.0,0.0001833,2]
[398242482,1765450244522,-152.0,0.0001833,2]
[398242483,1765450244532,-834.0,0.0001833,2]
[398242484,1765450244541,-1253.0,0.0001833,2]
[398242485,1765450244550,-153.0,0.0001833,2]
[398242486,1765450244559,-152.0,0.0001833,2]
[398242487,1765450244574,-834.0,0.0001833,2]
[398242488,1765450244586,-1253.0,0.0001833,2]
[398242489,1765450244595,-153.0,0.0001833,2]
[398242490,1765450244605,-248.51907817,0.0001833,2]
[398242491,1765450244618,-834.0,0.0001833,2]
[398242492,1765450244627,-1253.0,0.0001833,2]
[398242493,1765450244843,-153.0,0.0001833,2]
[398242494,1765450244852,-151.0,0.0001833,2]
[398242495,1765450244862,-834.0,0.0001833,2]
[398242496,1765450244871,-153.0,0.0001833,2]
[398242497,1765450244880,-151.0,0.0001833,2]
[398242498,1765450244893,-834.0,0.0001833,2]
[398242499,1765450244902,-1253.0,0.0001833,2]
[398242500,1765450244911,-153.0,0.0001833,2]
[398242501,1765450244920,-151.0,0.0001833,2]
[398242502,1765450244929,-834.0,0.0001833,2]
[398242503,1765450244938,-1253.0,0.0001833,2]
[398242504,1765450244948,-153.0,0.0001833,2]
[398242505,1765450244958,-151.0,0.0001833,2]
[398242506,1765450244967,-834.0,0.0001833,2]
[398242507,1765450244976,-1253.0,0.0001833,2]
[398242508,1765450244985,-153.0,0.0001833,2]
[398242509,1765450244994,-151.0,0.0001833,2]
[398242510,1765450245004,-834.0,0.0001833,2]
[398242511,1765450245013,-1253.0,0.0001833,2]
[398242512,1765450245022,-174.29886898,0.0001833,2]
[398242513,1765450245032,-152.0,0.0001833,2]
[398242514,1765450245041,-151.0,0.0001833,2]
[398242515,1765450245050,-834.0,0.0001833,2]
[398242516,1765450245059,-1253.0,0.0001833,2]
[398242517,1765450245068,-152.0,0.0001833,2]
[398242518,1765450245078,-151.0,0.0001833,2]
[398242519,1765450245087,-1253.0,0.0001833,2]
[398242520,1765450245096,-834.0,0.0001833,2]
[398242521,1765450245106,-152.0,0.0001833,2]
[398242522,1765450245116,-151.0,0.0001833,2]
[398242523,1765450245125,-1253.0,0.0001833,2]
[398242524,1765450245135,-834.0,0.0001833,2]
[398242525,1765450245145,-152.0,0.0001833,2]
[398242526,1765450245154,-151.0,0.0001833,2]
[398242527,1765450245164,-1253.0,0.0001833,2]
[398242528,1765450245174,-391.01069153,0.0001833,2]
[398242529,1765450245183,-152.0,0.0001833,2]
[398242530,1765450245193,-151.0,0.0001833,2]
[398242531,1765450245202,-1253.0,0.0001833,2]
[398242532,1765450245212,-152.0,0.0001833,2]
[398242533,1765450245222,-1253.0,0.0001833,2]
[398242534,1765450245231,-151.0,0.0001833,2]
[398242535,1765450245240,-152.0,0.0001833,2]
[398242536,1765450245250,-1253.0,0.0001833,2]
[398242537,1765450245259,-151.0,0.0001833,2]
[398242538,1765450245268,-152.0,0.0001833,2]
[398242539,1765450245277,-1253.0,0.0001833,2]
[398242540,1765450245290,-151.0,0.0001833,2]
[398242541,1765450245300,-1253.0,0.0001833,2]
[398242542,1765450245310,-151.0,0.0001833,2]
[398242543,1765450245319,-152.0,0.0001833,2]
[398242544,1765450245332,-1253.0,0.0001833,2]
[398242545,1765450245342,-151.0,0.0001833,2]
[398242546,1765450245351,-152.0,0.0001833,2]
[398242547,1765450245361,-1253.0,0.0001833,2]
[398242548,1765450245370,-151.0,0.0001833,2]
[398242549,1765450245380,-152.0,0.0001833,2]
[398242550,1765450245390,-1253.0,0.0001833,2]
[398242551,1765450245399,-151.0,0.0001833,2]
[398242552,1765450245409,-152.0,0.0001833,2]
[398242553,1765450245420,-1253.0,0.0001833,2]
[398242554,1765450245431,-151.0,0.0001833,2]
[398242555,1765450245442,-152.0,0.0001833,2]
[398242556,1765450245454,-1253.0,0.0001833,2]
[398242557,1765450245466,-151.0,0.0001833,2]
[398242558,1765450245480,-1253.0,0.0001833,2]
[398242559,1765450245493,-151.0,0.0001833,2]
[398242560,1765450245504,-152.0,0.0001833,2]
[398242561,1765450245516,-1253.0,0.0001833,2]
[398242562,1765450245547,-298.40563619,0.0001833,2]
[398242563,1765450245559,-152.0,0.0001833,2]
[398242564,1765450245572,-1253.0,0.0001833,2]
[398242565,1765450245588,-152.0,0.0001833,2]
[398242566,1765450245600,-1253.0,0.0001833,2]
[398242567,1765450245613,-152.0,0.0001833,2]
[398242568,1765450245624,-1253.0,0.0001833,2]
[398242569,1765450245635,-152.0,0.0001833,2]
[398242570,1765450245644,-1253.0,0.0001833,2]
[398242571,1765450245655,-152.0,0.0001833,2]
[398242572,1765450245666,-152.0,0.0001833,2]
[398242573,1765450245676,-1253.0,0.0001833,2]
[398242574,1765450245688,-152.0,0.0001833,2]
[398242575,1765450245699,-1253.0,0.0001833,2]
[398242576,1765450245710,-1253.0,0.0001833,2]
[398242577,1765450245724,-152.0,0.0001833,2]
[398242578,1765450245735,-1253.0,0.0001833,2]
[398242579,1765450245745,-152.0,0.0001833,2]
[398242580,1765450245755,-1253.0,0.0001833,2]
[398242581,1765450245765,-152.0,0.0001833,2]
[398242582,1765450245774,-1253.0,0.0001833,2]
[398242583,1765450245784,-152.0,0.0001833,2]
[398242584,1765450245794,-1253.0,0.0001833,2]
[398242585,1765450245803,-152.0,0.0001833,2]
[398242586,1765450245812,-1253.0,0.0001833,2]
[398242587,1765450245826,-152.0,0.0001833,2]
[398242588,1765450245836,-1253.0,0.0001833,2]
[398242589,1765450245846,-152.0,0.0001833,2]
[398242590,1765450245856,-1253.0,0.0001833,2]
[398242591,1765450245866,-152.0,0.0001833,2]
[398242592,1765450245875,-1253.0,0.0001833,2]
[398242593,1765450245885,-152.0,0.0001833,2]
[398242594,1765450245896,-1253.0,0.0001833,2]
[398242595,1765450245906,-285.38118858,0.0001833,2]
[398242596,1765450245915,-1253.0,0.0001833,2]
[398242597,1765450245925,-1253.0,0.0001833,2]
[398242598,1765450245935,-1253.0,0.0001833,2]
[398242599,1765450245944,-1253.0,0.0001833,2]
[398242600,1765450245953,-1253.0,0.0001833,2]
[398242601,1765450245963,-1253.0,0.0001833,2]
[398242602,1765450245972,-1253.0,0.0001833,2]
[398242603,1765450245981,-1054.34284544,0.0001833,2]
[398242604,1765450245991,-500.0,0.00018343,2]
[398242605,1765450246000,-1811.0,0.00018377,2]
[398242606,1765450246011,-194.76336841,0.00018464,2]
[398242607,1765450246021,-500.0,0.0001848,2]
[398242608,1765450246031,-401.0,0.00018515,2]
[398242609,1765450246040,-312.15151793,0.00018617,2]
[398242610,1765450246051,-21854.3653669,0.0001865,2]
[398242611,1765450246062,-500.0,0.00018685,2]
[398242612,1765450246073,-578.20924308,0.00018735,2]
[398242613,1765450246083,-537.72548403,0.000188,2]
[398242614,1765450246093,-334.94217321,0.000188,2]
[398242615,1765450246103,-500.0,0.000188,2]
[398242616,1765450246116,-500.0,0.000188,2]
[398242617,1765450246126,-500.0,0.000188,2]
[398242618,1765450246136,-500.0,0.000188,2]
[398242619,1765450246145,-500.0,0.000188,2]
[398242620,1765450246155,-502.26175893,0.000188,2]
[398242621,1765450246165,-500.0,0.000188,2]
[398242622,1765450246175,-500.0,0.000188,2]
[398242623,1765450246185,-500.0,0.000188,2]
[398242624,1765450246194,-500.0,0.000188,2]
[398242625,1765450246204,-500.0,0.000188,2]
[398242626,1765450246213,-500.0,0.000188,2]
[398242627,1765450246223,-500.0,0.000188,2]
[398242628,1765450246232,-500.0,0.000188,2]
[398242629,1765450246241,-201.95861982,0.000188,2]
[398242630,1765450246251,-500.0,0.000188,2]
[398242631,1765450246260,-501.06442764,0.000188,2]
[398242632,1765450246269,-500.0,0.000188,2]
[398242633,1765450246278,-500.0,0.000188,2]
[398242634,1765450246288,-500.75582479,0.000188,2]
[398242635,1765450246297,-322.6107,0.00018923,2]
[398242636,1765450246306,-1811.0,0.00018925,2]
[398242637,1765450246315,-163.65,0.00019,2]
[398242638,1765450246326,-181.223447,0.00019,2]
[398242639,1765450246335,-300.0,0.00019,2]
[398242640,1765450246344,-150.56,0.00019042,2]
[398242641,1765450246354,-151.0,0.00019115,2]
[398242642,1765450246364,-1218.46,0.00019147,2]
[398242643,1765450246373,-587.0,0.00019287,2]
[398242644,1765450246382,-151.1298291,0.00019348,2]
[398242645,1765450246393,-1000.0,0.00019348,2]
[398242646,1765450246402,-1000.0,0.00019348,2]
[398242647,1765450246412,-1000.0,0.00019348,2]
[398242648,1765450246422,-1000.0,0.00019348,2]
[398242649,1765450246431,-1000.0,0.00019348,2]
[398242650,1765450246441,-1025.74534144,0.00019348,2]
[398242651,1765450246451,-1000.0,0.00019348,2]
[398242652,1765450246461,-1000.0,0.00019348,2]
[398242653,1765450246471,-502.07699988,0.00019348,2]
[398242654,1765450246481,-1000.0,0.00019348,2]
[398242655,1765450246492,-1000.0,0.00019348,2]
[398242656,1765450246504,-1028.03438217,0.00019348,2]
[398242657,1765450246514,-1000.0,0.00019348,2]
[398242658,1765450246524,-1000.0,0.00019348,2]
[398242659,1765450246535,-1811.0,0.00019473,2]
[398242660,1765450246544,-2351.0,0.00019477,2]
[398242661,1765450246554,-1000.0,0.00019832,2]
[398242662,1765450246563,-868.4518578,0.00019845,2]
[398242663,1765450246574,-1888.9507532,0.00019883,2]
[398242664,1765450246583,-1500.0,0.00019896,2]
[398242665,1765450246593,-500.0,0.00019896,2]
[398242666,1765450246603,-1003.28665112,0.00019896,2]
[398242667,1765450246616,-1500.0,0.00019896,2]
[398242668,1765450246625,-979.86517479,0.00019896,2]
[398242669,1765450246635,-1001.81670451,0.00019896,2]
[398242670,1765450246644,-691.15032062,0.00019896,2]
[398242671,1765450246655,-501.26270885,0.00019896,2]
[398242672,1765450246664,-1500.0,0.00019896,2]
[398242673,1765450246673,-1000.0,0.00019896,2]
[398242674,1765450246682,-500.0,0.00019896,2]
[398242675,1765450246693,-1811.0,0.00020021,2]
[398242676,1765450246702,-150.56,0.00020162,2]
[398242677,1765450246711,-324.13,0.00020187,2]
[398242678,1765450246720,-334.5472959,0.00020292,2]
[398242679,1765450246729,-2000.0,0.00020444,2]
[398242680,1765450246739,-500.0,0.00020444,2]
[398242681,1765450246748,-1163.19619515,0.00020444,2]
[398242682,1765450246757,-151.0,0.00020484,2]
[398242683,1765450246767,-193.7778021,0.00020585,2]
[398242684,1765450246776,-421.481884,0.00020614,2]
[398242685,1765450246786,-1000.0,0.000207,2]
[398242686,1765450246795,-254.54,0.00020726,2]
[398242687,1765450246805,-649.61048758,0.00020735,2]
[398242688,1765450246814,-162.72,0.00020795,2]
[398242689,1765450246823,-5011.97476147,0.0002092,2]
[398242690,1765450246833,-5000.0,0.0002092,2]
[398242691,1765450246844,-5000.0,0.0002092,2]
[398242692,1765450246854,-1218.46,0.00021062,2]
[398242693,1765450246863,-823.0,0.00021084,2]
[398242694,1765450246872,-150.56,0.00021283,2]
[398242695,1765450246882,-3292.0,0.00021399,2]
[398242696,1765450246891,-480.8162296,0.00021544,2]
[398242697,1765450246903,-346.92554585,0.00021661,2]
[398242698,1765450246913,-1000.0,0.00021816,2]
[398242699,1765450246922,-3614.7,0.0002183,2]
[398242700,1765450246931,-151.0,0.00021853,2]
[398242701,1765450246940,-5000.0,0.00021918,2]
[398242702,1765450246950,-2048.93,0.00022,7]
[398242703,1765450246959,-203.26,0.00022266,2]
[398242704,1765450246968,-150.56,0.00022403,2]
[398242705,1765450246978,-168.27,0.00022603,2]
[398242706,1765450246987,-1218.46,0.00022977,2]
[398242707,1765450246997,-359.76179104,0.0002303,2]
[398242708,1765450247006,-1152.0,0.00023049,2]
[398242709,1765450247015,-151.0,0.00023222,2]
[398242710,1765450247025,-4609.0,0.0002351,2]
[398242711,1765450247034,-150.56,0.00023523,2]
[398242712,1765450247043,-1000.0,0.00023799,2]
[398242713,1765450247052,-373.07297731,0.00024399,2]
[398242714,1765450247061,-1000.0,0.000244,2]
[398242715,1765450247071,-189.62587265,0.00024591,2]
[398242716,1765450247080,-427.22,0.00024658,30]
[398242717,1765450247090,-1000.0,0.00024658,2]
[398242718,1765450247099,-3078.5607126,0.000248,3]
[398242719,1765450247108,-2048.93,0.000249,7]
[398242720,1765450247118,-649.61048758,0.0002494,2]
[398242721,1765450247127,-299.99,0.0002498,7]
[398242722,1765450247136,-150.99,0.0002498,2]
[398242723,1765450247145,-8085.58,0.0002498,2]
[398242724,1765450247155,-9999.99,0.0002498,2]
[398242725,1765450247166,-999.99,0.0002498,2]
[398242726,1765450247176,-9999.99,0.0002498,2]
[398242727,1765450247185,-150.99,0.0002498,2]
[398242728,1765450247194,-1277.0,0.00025196,2]
[398242729,1765450247204,-386.87667747,0.00025768,2]
[398242730,1765450247214,-169.87,0.000258,14]
[398242731,1765450247224,-956.0,0.0002583,2]
[398242732,1765450247235,-324.13,0.00026676,2]
[398242733,1765450247245,-401.19111454,0.00027137,2]
[398242734,1765450247257,-500.0,0.00027397,14]
[398242735,1765450247266,-151.0,0.00027397,7]
[398242736,1765450247276,-4465.15,0.00027726,2]
[398242737,1765450247285,-150.0,0.000278,2]
[398242738,1765450247294,-3006.90863046,0.00028,3]
[398242739,1765450247304,-480.8162296,0.00028,3]
[398242740,1765450247313,-168.27,0.00028493,2]
[398242741,1765450247322,-416.03518578,0.00028506,2]
[398242742,1765450247332,-2048.93,0.000291,7]
[398242743,1765450247341,-649.61048758,0.00029145,2]
[398242744,1765450247351,-2153.22366514,0.00029332,2]
[398242745,1765450247360,-427.22,0.00029492,30]
[398242746,1765450247369,-150.0,0.000298,2]
[398242747,1765450247378,-302.79472894,0.00029832,2]
[398242748,1765450247387,-431.42848765,0.00029875,2]
[398242749,1765450247396,-10118.87333203,0.0003013,120]
[398242750,1765450247405,-717.38,0.000302,30]
[398242751,1765450247414,-480.60611659,0.000302,120]
[398242752,1765450247423,-5486.23866476,0.0003027,2]
[398242753,1765450247432,-447.3913417,0.00031244,2]
[398242754,1765450247442,-10000.0,0.00031507,120]
[398242755,1765450247451,-254.47944523,0.000318,2]
[398242756,1765450247461,-769.41358619,0.00031824,2]
[398242757,1765450247469,-509.62,0.000323,14]
[398242758,1765450247478,-215.42757865,0.00032613,2]
[398242759,1765450247488,-151.0,0.00032877,31]
[398242760,1765450247498,-203.624196,0.00032877,31]
[398242761,1765450247507,-151.0,0.00032877,31]
[398242762,1765450247516,-151.0,0.00032877,31]
[398242763,1765450247526,-151.0,0.00032877,31]
[398242764,1765450247549,-151.0,0.00032877,31]
[398242765,1765450247559,-151.0,0.00032877,31]
[398242766,1765450247568,-151.0,0.00032877,31]
[398242767,1765450247577,-151.0,0.00032877,31]
[398242768,1765450247586,-151.0,0.00032877,31]
[398242769,1765450247597,-151.0,0.00032877,31]
[398242770,1765450247607,-151.0,0.00032877,31]
[398242771,1765450247620,-151.0,0.00032877,31]
[398242772,1765450247629,-151.0,0.00032877,31]
[398242773,1765450247638,-151.0,0.00032877,31]
[398242774,1765450247647,-151.0,0.00032877,31]
[398242775,1765450247657,-152.600022,0.00032877,31]
[398242776,1765450247666,-151.0,0.00032877,31]
[398242777,1765450247675,-167.828977,0.00032877,7]
[398242778,1765450247693,-200.858913,0.00032877,31]
[398242779,1765450247703,-151.0,0.00032877,31]
[398242780,1765450247713,-151.0,0.00032877,31]
[398242781,1765450247722,-170.961963,0.00032877,31]
[398242782,1765450247732,-151.0,0.00032877,31]
[398242783,1765450247741,-151.0,0.00032877,31]
[398242784,1765450247750,-151.0,0.00032877,31]
[398242785,1765450247759,-151.0,0.00032877,31]
[398242786,1765450247767,-151.0,0.00032877,31]
[398242787,1765450247776,-151.0,0.00032877,31]
[398242788,1765450247785,-151.0,0.00032877,31]
[398242789,1765450247795,-151.0,0.00032877,31]
[398242790,1765450247804,-215.406658,0.00032877,31]
[398242791,1765450247813,-151.0,0.00032877,31]
[398242792,1765450247822,-200.000001,0.00032877,31]
[398242793,1765450247831,-160.704717,0.00032877,31]
[398242794,1765450247839,-151.0,0.00032877,31]
[398242795,1765450247849,-151.0,0.00032877,31]
[398242796,1765450247858,-151.0,0.00032877,31]
[398242797,1765450247867,-151.0,0.00032877,31]
[398242798,1765450247877,-151.0,0.00032877,31]
[398242799,1765450247886,-151.0,0.00032877,31]
[398242800,1765450247895,-196.646024,0.00032877,31]
[398242801,1765450247905,-151.0,0.00032877,31]
[398242802,1765450247915,-151.0,0.00032877,31]